fUSD/lending_fUSD_20240114
["ID","MTS","AMOUNT","RATE_DAILY","PERIOD"]
[311614837,1705265470656,-644.63,0.00030684,2]
[311614838,1705265470665,-917.54,0.00030684,2]
[311614839,1705265470674,-500.0,0.00030684,2]
[311614840,1705265470684,-4169.87,0.00030684,2]
[311614841,1705265470693,-503.48,0.00030684,2]
[311614842,1705265470702,-810.05,0.00030684,2]
[311614843,1705265470720,-500.0,0.00030684,2]
[311614844,1705265470729,-799.56,0.00030684,2]
[311614845,1705265470738,-500.0,0.00030684,2]
[311614846,1705265470748,-907.45,0.00030684,2]
[311614847,1705265470758,-500.0,0.00030684,2]
[311614848,1705265470767,-767.29,0.00030684,2]
[311614849,1705265470776,-733.07,0.00030684,2]
[311614850,1705265470788,-500.0,0.00030684,2]
[311614851,1705265470798,-6057.77,0.00030684,2]
[311614852,1705265470807,-500.0,0.00030684,2]
[311614853,1705265470817,-295.86258224,0.00030684,2]
[311614854,1705265470827,-1447.4,0.00030684,2]
[311614855,1705265470836,-1557.23,0.00030684,2]
[311614856,1705265470846,-500.0,0.00030684,2]
[311614857,1705265470856,-1520.88,0.00030684,2]
[311614858,1705265470867,-500.0,0.00030684,2]
[311614859,1705265470877,-500.0,0.00030684,2]
[311614860,1705265470890,-500.0,0.00030684,2]
[311614861,1705265470908,-1561.7,0.00030684,2]
[311614862,1705265470933,-500.0,0.00030684,2]
[311614863,1705265470948,-500.0,0.00030684,2]
[311614864,1705265470967,-16510.87,0.00030684,2]
[311614865,1705265470986,-2650.58,0.00030684,2]
[311614866,1705265471006,-500.0,0.00030684,2]
[311614867,1705265471024,-1302.74,0.00030684,2]
[311614868,1705265471042,-500.0,0.00030684,2]
[311614869,1705265471061,-587.88,0.00030684,2]
[311614870,1705265471076,-3126.96,0.00030684,2]
[311614871,1705265471209,-500.0,0.00030684,2]
[311614872,1705265471219,-1648.36,0.00030684,2]
[311614873,1705265471232,-500.0,0.00030684,2]
[311614874,1705265471242,-1892.55,0.00030684,2]
[311614875,1705265471251,-500.0,0.00030684,2]
[311614876,1705265471261,-3105.59,0.00030684,2]
[311614877,1705265471271,-500.0,0.00030684,2]
[311614878,1705265471281,-8950.09,0.00030684,2]
[311614879,1705265471291,-1582.78,0.00030684,2]
[311614880,1705265471309,-500.0,0.00030684,2]
[311614881,1705265471319,-500.0,0.00030684,2]
[311614882,1705265471328,-1119.58,0.00030684,2]
[311614883,1705265471338,-500.0,0.00030684,2]
[311614884,1705265471347,-500.0,0.00030684,2]
[311614885,1705265471358,-810.88,0.00030684,2]
[311614886,1705265471371,-925.46,0.00030684,2]
[311614887,1705265471381,-1419.16,0.00030684,2]
[311614888,1705265471391,-1362.22,0.00030684,2]
[311614889,1705265471401,-500.0,0.00030684,2]
[311614890,1705265471411,-840.38,0.00030684,2]
[311614891,1705265471421,-500.0,0.00030684,2]
[311614892,1705265471431,-707.1,0.00030684,2]
[311614893,1705265471441,-500.0,0.00030684,2]
[311614894,1705265471451,-1153.75,0.00030684,2]
[311614895,1705265471460,-500.0,0.00030684,2]
[311614896,1705265471470,-965.13,0.00030684,2]
[311614897,1705265471480,-500.0,0.00030684,2]
[311614898,1705265471489,-500.0,0.00030684,2]
[311614899,1705265471499,-836.71,0.00030684,2]
[311614900,1705265471509,-736.07,0.00030684,2]
[311614901,1705265471518,-1354.92,0.00030684,2]
[311614902,1705265471528,-500.0,0.00030684,2]
[311614903,1705265471538,-622.53,0.00030684,2]
[311614904,1705265471547,-1339.45,0.00030684,2]
[311614905,1705265471557,-500.0,0.00030684,2]
[311614906,1705265471567,-5875.67,0.00030684,2]
[311614907,1705265471576,-772.02,0.00030684,2]
[311614908,1705265471585,-300.0,0.00030684,2]
[311614909,1705265471595,-500.0,0.00030684,2]
[311614910,1705265471604,-784.6,0.00030684,2]
[311614911,1705265471614,-3535.86,0.00030684,2]
[311614912,1705265471623,-726.02,0.00030684,2]
[311614913,1705265471632,-500.0,0.00030684,2]
[311614914,1705265471641,-500.0,0.00030684,2]
[311614915,1705265471651,-2000.77,0.00030684,2]
[311614916,1705265471660,-500.0,0.00030684,2]
[311614917,1705265471669,-500.0,0.00030684,2]
[311614918,1705265471678,-4196.76,0.00030684,2]
[311614919,1705265471687,-500.0,0.00030684,2]
[311614920,1705265471696,-1070.23,0.00030684,2]
[311614921,1705265471705,-874.57,0.00030684,2]
[311614922,1705265471714,-563.09,0.00030684,2]
[311614923,1705265471727,-500.0,0.00030684,2]
[311614924,1705265471737,-803.67,0.00030684,2]
[311614925,1705265471746,-581.19,0.00030684,2]
[311614926,1705265471755,-869.2,0.00030684,2]
[311614927,1705265471765,-500.0,0.00030684,2]
[311614928,1705265471775,-2946.84,0.00030684,2]
[311614929,1705265471784,-500.0,0.00030684,2]
[311614930,1705265471793,-500.0,0.00030684,2]
[311614931,1705265471803,-633.03,0.00030684,2]
[311614932,1705265471813,-500.0,0.00030684,2]
[311614933,1705265471824,-969.9,0.00030684,2]
[311614934,1705265471833,-711.01,0.00030684,2]
[311614935,1705265471843,-1464.74,0.00030684,2]
[311614936,1705265471852,-552.27,0.00030684,2]
[311614937,1705265471861,-173.3391013,0.00030684,2]
[311614938,1705265471872,-500.0,0.00030684,2]
[311614939,1705265471881,-1928.32,0.00030684,2]
[311614940,1705265471890,-1643.12,0.00030684,2]
[311614941,1705265471899,-1109.23,0.00030684,2]
[311614942,1705265471908,-422.94291238,0.00030684,2]
[311614943,1705265471918,-1980.27,0.00030684,2]
[311614944,1705265471927,-1413.08,0.00030684,2]
[311614945,1705265471936,-503.28,0.00030684,2]
[311614946,1705265471945,-500.0,0.00030684,2]
[311614947,1705265471955,-500.0,0.00030684,2]
[311614948,1705265471964,-500.0,0.00030684,2]
[311614949,1705265471974,-500.0,0.00030684,2]
[311614950,1705265471983,-500.0,0.00030684,2]
[311614951,1705265471993,-1886.92,0.00030684,2]
[311614952,1705265472002,-532.18,0.00030684,2]
[311614953,1705265472012,-710.77,0.00030684,2]
[311614954,1705265472021,-560.65,0.00030684,2]
[311614955,1705265472031,-848.62,0.00030684,2]
[311614956,1705265472040,-500.0,0.00030684,2]
[311614957,1705265472050,-610.95,0.00030684,2]
[311614958,1705265472059,-4590.19,0.00030684,2]
[311614959,1705265472068,-567.58,0.00030684,2]
[311614960,1705265472077,-500.0,0.00030684,2]
[311614961,1705265472087,-500.0,0.00030684,2]
[311614962,1705265472096,-1287.53,0.00030684,2]
[311614963,1705265472105,-1505.43,0.00030684,2]
[311614964,1705265472116,-151.0,0.00030684,7]
[311614965,1705265472125,-151.0,0.00030684,7]
[311614966,1705265472134,-151.0,0.00030684,7]
[311614967,1705265472143,-151.0,0.00030684,7]
[311614968,1705265472153,-151.0,0.00030684,7]
[311614969,1705265472162,-151.0,0.00030684,7]
[311614970,1705265472171,-151.0,0.00030684,7]
[311614971,1705265472180,-151.0,0.00030684,7]
[311614972,1705265472190,-1000.0,0.00030712,2]
[311614973,1705265472199,-433.46426864,0.00030712,2]
[311614974,1705265472208,-1000.0,0.00030712,2]
[311614975,1705265472218,-492.04,0.00030795,2]
[311614976,1705265472227,-15579.32167354,0.00030809,2]
[311614977,1705265472237,-300.0,0.00030857,2]
[311614978,1705265472246,-209.0,0.00030858,2]
[311614979,1705265472256,-245000.0,0.00030858,2]
[311614980,1705265472265,-250.0,0.00030858,2]
[311614981,1705265472275,-5000.0,0.00030858,2]
[311614982,1705265472284,-213.7777,0.00030858,2]
[311614983,1705265472294,-8359.8173,0.00030858,2]
[311614984,1705265472303,-20000.0,0.00030858,2]
[311614985,1705265472313,-151.0,0.00030858,7]
[311614986,1705265472322,-151.0,0.00030858,7]
[311614987,1705265472332,-151.0,0.00030858,7]
[311614988,1705265472341,-674.247,0.00030898,2]
[311614989,1705265472351,-943.0,0.00030898,2]
[311614990,1705265472365,-831.0,0.00030898,2]
[311614991,1705265472374,-1234.0,0.00030898,2]
[311614992,1705265472383,-1252.0,0.00030898,2]
[311614993,1705265472393,-2895.0,0.00030898,2]
[311614994,1705265472403,-11222.072,0.00030898,2]
[311614995,1705265472412,-1839.387,0.00030898,2]
[311614996,1705265472422,-2032.0,0.00030898,2]
[311614997,1705265472432,-3934.0,0.000309,2]
[311614998,1705265472442,-151.0,0.000309,7]
[311614999,1705265472452,-278.538305,0.000309,2]
[311615000,1705265472462,-176.86,0.00030933,2]
[311615001,1705265472472,-1993.60653099,0.00030955,2]
[311615002,1705265472481,-500.0,0.00030958,2]
[311615003,1705265472491,-500.0,0.00030958,2]
[311615004,1705265472500,-500.0,0.00030958,2]
[311615005,1705265472509,-176.44005527,0.00030958,2]
[311615006,1705265472519,-500.0,0.00030958,2]
[311615007,1705265472528,-500.0,0.00030958,2]
[311615008,1705265472538,-500.0,0.00030958,2]
[311615009,1705265472547,-500.0,0.00030958,2]
[311615010,1705265472557,-500.0,0.00030958,2]
[311615011,1705265472566,-500.0,0.00030958,2]
[311615012,1705265472575,-397.94328466,0.00030958,2]
[311615013,1705265472584,-500.0,0.00030958,2]
[311615014,1705265472593,-500.0,0.00030958,2]
[311615015,1705265472602,-500.0,0.00030958,2]
[311615016,1705265472611,-500.0,0.00030958,2]
[311615017,1705265472622,-500.0,0.00030958,2]
[311615018,1705265472631,-500.0,0.00030958,2]
[311615019,1705265472640,-500.0,0.00030958,2]
[311615020,1705265472649,-500.0,0.00030958,2]
[311615021,1705265472659,-500.0,0.00030958,2]
[311615022,1705265472668,-500.0,0.00030958,2]
[311615023,1705265472677,-500.0,0.00030958,2]
[311615024,1705265472687,-500.0,0.00030958,2]
[311615025,1705265472696,-500.0,0.00030958,2]
[311615026,1705265472705,-500.0,0.00030958,2]
[311615027,1705265472715,-528.74,0.00030958,2]
[311615028,1705265472729,-500.0,0.00030958,2]
[311615029,1705265472738,-502.48,0.00030958,2]
[311615030,1705265472747,-500.0,0.00030958,2]
[311615031,1705265472757,-500.0,0.00030958,2]
[311615032,1705265472768,-500.0,0.00030958,2]
[311615033,1705265472777,-500.0,0.00030958,2]
[311615034,1705265472786,-500.0,0.00030958,2]
[311615035,1705265472795,-500.0,0.00030958,2]
[311615036,1705265472805,-500.0,0.00030958,2]
[311615037,1705265472814,-770.53,0.00030958,2]
[311615038,1705265472823,-500.0,0.00030958,2]
[311615039,1705265472833,-500.0,0.00030958,2]
[311615040,1705265472843,-536.98,0.00030958,2]
[311615041,1705265472852,-500.0,0.00030958,2]
[311615042,1705265472863,-926.02,0.00030958,2]
[311615043,1705265472873,-500.0,0.00030958,2]
[311615044,1705265472883,-500.0,0.00030958,2]
[311615045,1705265472891,-1147.85,0.00030958,2]
[311615046,1705265472901,-500.0,0.00030958,2]
[311615047,1705265472911,-500.0,0.00030958,2]
[311615048,1705265472920,-500.0,0.00030958,2]
[311615049,1705265472929,-500.0,0.00030958,2]
[311615050,1705265472939,-541.41,0.00030958,2]
[311615051,1705265472949,-500.0,0.00030958,2]
[311615052,1705265472959,-500.0,0.00030958,2]
[311615053,1705265472968,-500.0,0.00030958,2]
[311615054,1705265472977,-500.0,0.00030958,2]
[311615055,1705265472987,-500.0,0.00030958,2]
[311615056,1705265472996,-500.0,0.00030958,2]
[311615057,1705265473005,-500.0,0.00030958,2]
[311615058,1705265473015,-500.0,0.00030958,2]
[311615059,1705265473024,-500.0,0.00030958,2]
[311615060,1705265473035,-500.0,0.00030958,2]
[311615061,1705265473044,-709.9,0.00030958,2]
[311615062,1705265473054,-542.02438934,0.00030958,2]
[311615063,1705265473064,-500.0,0.00030958,2]
[311615064,1705265473073,-207.23020103,0.00030958,2]
[311615065,1705265473083,-500.0,0.00030958,2]
[311615066,1705265473092,-656.39,0.00030958,2]
[311615067,1705265473102,-500.0,0.00030958,2]
[311615068,1705265473112,-500.0,0.00030958,2]
[311615069,1705265473125,-500.0,0.00030958,2]
[311615070,1705265473134,-500.0,0.00030958,2]
[311615071,1705265473143,-500.0,0.00030958,2]
[311615072,1705265473153,-500.0,0.00030958,2]
[311615073,1705265473162,-585.77,0.00030958,2]
[311615074,1705265473171,-500.0,0.00030958,2]
[311615075,1705265473180,-646.67,0.00030958,2]
[311615076,1705265473189,-500.0,0.00030958,2]
[311615077,1705265473198,-500.0,0.00030958,2]
[311615078,1705265473207,-500.0,0.00030958,2]
[311615079,1705265473217,-518.76,0.00030958,2]
[311615080,1705265473227,-500.0,0.00030958,2]
[311615081,1705265473236,-500.0,0.00030958,2]
[311615082,1705265473245,-500.0,0.00030958,2]
[311615083,1705265473254,-500.0,0.00030958,2]
[311615084,1705265473263,-500.0,0.00030958,2]
[311615085,1705265473272,-500.0,0.00030958,2]
[311615086,1705265473282,-500.0,0.00030958,2]
[311615087,1705265473292,-500.0,0.00030958,2]
[311615088,1705265473595,-500.0,0.00030958,2]
[311615089,1705265473616,-500.0,0.00030958,2]
[311615090,1705265473625,-673.27,0.00030958,2]
[311615091,1705265473634,-653.68,0.00030958,2]
[311615092,1705265473643,-640.51,0.00030958,2]
[311615093,1705265473653,-500.0,0.00030958,2]
[311615094,1705265473662,-595.86,0.00030958,2]
[311615095,1705265473671,-500.0,0.00030958,2]
[311615096,1705265473680,-500.0,0.00030958,2]
[311615097,1705265473689,-565.95,0.00030958,2]
[311615098,1705265473698,-500.0,0.00030958,2]
[311615099,1705265473709,-500.0,0.00030958,2]
[311615100,1705265473718,-588.78,0.00030958,2]
[311615101,1705265473732,-645.55,0.00030958,2]
[311615102,1705265473741,-683.34,0.00030958,2]
[311615103,1705265473750,-551.22,0.00030958,2]
[311615104,1705265473759,-529.01332005,0.00030958,2]
[311615105,1705265473770,-500.0,0.00030958,2]
[311615106,1705265473779,-500.0,0.00030958,2]
[311615107,1705265473788,-594.67,0.00030958,2]
[311615108,1705265473798,-963.4,0.00030958,2]
[311615109,1705265473808,-601.15,0.00030958,2]
[311615110,1705265473818,-665.95,0.00030958,2]
[311615111,1705265473827,-500.0,0.00030958,2]
[311615112,1705265473837,-500.0,0.00030958,2]
[311615113,1705265473846,-510.31497412,0.00030958,2]
[311615114,1705265473855,-500.0,0.00030958,2]
[311615115,1705265473865,-500.0,0.00030958,2]
[311615116,1705265473875,-585.23319674,0.00030958,2]
[311615117,1705265473884,-500.0,0.00030958,2]
[311615118,1705265473894,-626.87,0.00030958,2]
[311615119,1705265473903,-562.08,0.00030958,2]
[311615120,1705265473912,-500.0,0.00030958,2]
[311615121,1705265473922,-500.0,0.00030958,2]
[311615122,1705265473932,-500.0,0.00030958,2]
[311615123,1705265473942,-500.0,0.00030958,2]
[311615124,1705265473951,-727.57,0.00030958,2]
[311615125,1705265473960,-560.21,0.00030958,2]
[311615126,1705265473971,-500.0,0.00030958,2]
[311615127,1705265473980,-649.42487145,0.00030958,2]
[311615128,1705265473990,-500.0,0.00030958,2]
[311615129,1705265473998,-500.0,0.00030958,2]
[311615130,1705265474007,-500.0,0.00030958,2]
[311615131,1705265474016,-500.0,0.00030958,2]
[311615132,1705265474026,-500.0,0.00030958,2]
[311615133,1705265474035,-500.0,0.00030958,2]
[311615134,1705265474045,-500.0,0.00030958,2]
[311615135,1705265474054,-509.68089597,0.00030958,2]
[311615136,1705265474064,-500.0,0.00030958,2]
[311615137,1705265474073,-500.0,0.00030958,2]
[311615138,1705265474083,-500.0,0.00030958,2]
[311615139,1705265474091,-500.0,0.00030958,2]
[311615140,1705265474101,-607.16,0.00030958,2]
[311615141,1705265474110,-982.04,0.00030958,2]
[311615142,1705265474122,-437.72260607,0.00030958,2]
[311615143,1705265474131,-500.0,0.00030958,2]
[311615144,1705265474140,-600.07,0.00030958,2]
[311615145,1705265474149,-500.0,0.00030958,2]
[311615146,1705265474159,-500.0,0.00030958,2]
[311615147,1705265474169,-1048.4,0.00030958,2]
[311615148,1705265474178,-500.0,0.00030958,2]
[311615149,1705265474187,-950.82,0.00030958,2]
[311615150,1705265474196,-500.0,0.00030958,2]
[311615151,1705265474205,-500.0,0.00030958,2]
[311615152,1705265474215,-775.5,0.00030958,2]
[311615153,1705265474225,-500.0,0.00030958,2]
[311615154,1705265474234,-806.58,0.00030958,2]
[311615155,1705265474244,-500.0,0.00030958,2]
[311615156,1705265474253,-500.0,0.00030958,2]
[311615157,1705265474262,-748.97,0.00030958,2]
[311615158,1705265474272,-500.0,0.00030958,2]
[311615159,1705265474281,-500.0,0.00030958,2]
[311615160,1705265474290,-500.0,0.00030958,2]
[311615161,1705265474300,-500.0,0.00030958,2]
[311615162,1705265474310,-349.58908532,0.00030958,2]
[311615163,1705265474319,-544.49,0.00030958,2]
[311615164,1705265474329,-500.0,0.00030958,2]
[311615165,1705265474338,-500.0,0.00030958,2]
[311615166,1705265474348,-500.0,0.00030958,2]
[311615167,1705265474358,-671.61,0.00030958,2]
[311615168,1705265474369,-493.17868158,0.00030958,2]
[311615169,1705265474378,-500.0,0.00030958,2]
[311615170,1705265474388,-500.0,0.00030958,2]
[311615171,1705265474397,-500.0,0.00030958,2]
[311615172,1705265474405,-500.0,0.00030958,2]
[311615173,1705265474416,-500.0,0.00030958,2]
[311615174,1705265474425,-500.0,0.00030958,2]
[311615175,1705265474436,-500.0,0.00030958,2]
[311615176,1705265474445,-602.2,0.00030958,2]
[311615177,1705265474454,-769.86,0.00030958,2]
[311615178,1705265474464,-500.0,0.00030958,2]
[311615179,1705265474473,-500.0,0.00030958,2]
[311615180,1705265474482,-500.0,0.00030958,2]
[311615181,1705265474492,-500.0,0.00030958,2]
[311615182,1705265474501,-500.0,0.00030958,2]
[311615183,1705265474511,-500.0,0.00030958,2]
[311615184,1705265474521,-500.0,0.00030958,2]
[311615185,1705265474531,-500.0,0.00030958,2]
[311615186,1705265474543,-500.0,0.00030958,2]
[311615187,1705265474553,-500.0,0.00030958,2]
[311615188,1705265474563,-500.0,0.00030958,2]
[311615189,1705265474577,-577.96495162,0.00030958,2]
[311615190,1705265474587,-692.82,0.00030958,2]
[311615191,1705265474600,-398.87,0.00030958,2]
[311615192,1705265474611,-507.31,0.00030958,2]
[311615193,1705265474623,-500.0,0.00030958,2]
[311615194,1705265474633,-500.0,0.00030958,2]
[311615195,1705265474642,-500.0,0.00030958,2]
[311615196,1705265474652,-500.0,0.00030958,2]
[311615197,1705265474663,-729.84,0.00030958,2]
[311615198,1705265474675,-536.68,0.00030958,2]
[311615199,1705265474685,-583.46,0.00030958,2]
[311615200,1705265474694,-500.0,0.00030958,2]
[311615201,1705265474703,-500.0,0.00030958,2]
[311615202,1705265474712,-500.0,0.00030958,2]
[311615203,1705265474725,-500.0,0.00030958,2]
[311615204,1705265474737,-500.0,0.00030958,2]
[311615205,1705265474746,-500.0,0.00030958,2]
[311615206,1705265474756,-1000.1,0.00030958,2]
[311615207,1705265474767,-500.0,0.00030958,2]
[311615208,1705265474777,-500.0,0.00030958,2]
[311615209,1705265474786,-500.0,0.00030958,2]
[311615210,1705265474795,-500.0,0.00030958,2]
[311615211,1705265474804,-793.74,0.00030958,2]
[311615212,1705265474814,-702.71,0.00030958,2]
[311615213,1705265474823,-500.0,0.00030958,2]
[311615214,1705265474833,-500.0,0.00030958,2]
[311615215,1705265474842,-500.0,0.00030958,2]
[311615216,1705265474853,-923.77,0.00030958,2]
[311615217,1705265474862,-500.0,0.00030958,2]
[311615218,1705265474871,-500.0,0.00030958,2]
[311615219,1705265474881,-629.36,0.00030958,2]
[311615220,1705265474890,-500.0,0.00030958,2]
[311615221,1705265474899,-500.0,0.00030958,2]
[311615222,1705265474908,-867.3,0.00030958,2]
[311615223,1705265474918,-500.0,0.00030958,2]
[311615224,1705265474927,-500.0,0.00030958,2]
[311615225,1705265474936,-500.0,0.00030958,2]
[311615226,1705265474945,-250.0,0.00030958,2]
[311615227,1705265474954,-581.81,0.00030958,2]
[311615228,1705265474963,-624.05,0.00030958,2]
[311615229,1705265474972,-830.39,0.00030958,2]
[311615230,1705265474981,-500.0,0.00030958,2]
[311615231,1705265475001,-500.0,0.00030958,2]
[311615232,1705265475010,-677.4,0.00030958,2]
[311615233,1705265475028,-569.8977549,0.00030958,2]
[311615234,1705265475039,-1100.99,0.00030958,2]
[311615235,1705265475050,-525.17,0.00030958,2]
[311615236,1705265475060,-500.0,0.00030958,2]
[311615237,1705265475069,-500.0,0.00030958,2]
[311615238,1705265475079,-586.11,0.00030958,2]
[311615239,1705265475088,-500.0,0.00030958,2]
[311615240,1705265475097,-500.0,0.00030958,2]
[311615241,1705265475107,-500.0,0.00030958,2]
[311615242,1705265475117,-1229.11,0.00030958,2]
[311615243,1705265475126,-1106.76,0.00030958,2]
[311615244,1705265475136,-500.0,0.00030958,2]
[311615245,1705265475153,-500.0,0.00030958,2]
[311615246,1705265475162,-500.0,0.00030958,2]
[311615247,1705265475172,-894.93,0.00030958,2]
[311615248,1705265475182,-608.9,0.00030958,2]
[311615249,1705265475191,-500.0,0.00030958,2]
[311615250,1705265475200,-946.64,0.00030958,2]
[311615251,1705265475211,-619.49,0.00030958,2]
[311615252,1705265475224,-500.0,0.00030958,2]
[311615253,1705265475234,-500.0,0.00030958,2]
[311615254,1705265475254,-868.77,0.00030958,2]
[311615255,1705265475263,-500.0,0.00030958,2]
[311615256,1705265475279,-500.0,0.00030958,2]
[311615257,1705265475295,-500.0,0.00030958,2]
[311615258,1705265475308,-500.0,0.00030958,2]
[311615259,1705265475321,-500.0,0.00030958,2]
[311615260,1705265475331,-500.0,0.00030958,2]
[311615261,1705265475351,-578.25,0.00030958,2]
[311615262,1705265475360,-500.0,0.00030958,2]
[311615263,1705265475371,-500.0,0.00030958,2]
[311615264,1705265475390,-500.0,0.00030958,2]
[311615265,1705265475399,-500.0,0.00030958,2]
[311615266,1705265475416,-532.95,0.00030958,2]
[311615267,1705265475426,-1204.84,0.00030958,2]
[311615268,1705265475443,-500.0,0.00030958,2]
[311615269,1705265475455,-500.0,0.00030958,2]
[311615270,1705265475464,-500.0,0.00030958,2]
[311615271,1705265475481,-500.0,0.00030958,2]
[311615272,1705265475492,-545.29,0.00030958,2]
[311615273,1705265475502,-500.0,0.00030958,2]
[311615274,1705265475511,-670.63,0.00030958,2]
[311615275,1705265475520,-523.04,0.00030958,2]
[311615276,1705265475530,-500.0,0.00030958,2]
[311615277,1705265475539,-500.0,0.00030958,2]
[311615278,1705265475548,-500.0,0.00030958,2]
[311615279,1705265475558,-500.0,0.00030958,2]
[311615280,1705265475568,-636.75,0.00030958,2]
[311615281,1705265475590,-500.0,0.00030958,2]
[311615282,1705265475600,-500.0,0.00030958,2]
[311615283,1705265475621,-500.0,0.00030958,2]
[311615284,1705265475631,-596.02,0.00030958,2]
[311615285,1705265475641,-1015.13,0.00030958,2]
[311615286,1705265475650,-500.0,0.00030958,2]
[311615287,1705265475660,-197.5936445,0.00030958,2]
[311615288,1705265475669,-500.0,0.00030958,2]
[311615289,1705265475678,-851.16,0.00030958,2]
[311615290,1705265475687,-1744.35,0.00030958,2]
[311615291,1705265475697,-500.0,0.00030958,2]
[311615292,1705265475706,-500.0,0.00030958,2]
[311615293,1705265475715,-536.9,0.00030958,2]
[311615294,1705265475726,-846.45,0.00030958,2]
[311615295,1705265475735,-500.0,0.00030958,2]
[311615296,1705265475744,-500.0,0.00030958,2]
[311615297,1705265475753,-500.0,0.00030958,2]
[311615298,1705265475762,-607.07,0.00030958,2]
[311615299,1705265475772,-1022.21,0.00030958,2]
[311615300,1705265475781,-797.3,0.00030958,2]
[311615301,1705265475791,-500.0,0.00030958,2]
[311615302,1705265475800,-560.52,0.00030958,2]
[311615303,1705265475809,-1056.73,0.00030958,2]
[311615304,1705265475819,-500.0,0.00030958,2]
[311615305,1705265475828,-546.08,0.00030958,2]
[311615306,1705265475837,-1547.25,0.00030958,2]
[311615307,1705265475846,-715.62,0.00030958,2]
[311615308,1705265475855,-500.0,0.00030958,2]
[311615309,1705265475865,-1245.22,0.00030958,2]
[311615310,1705265475874,-500.0,0.00030958,2]
[311615311,1705265475883,-900.1,0.00030958,2]
[311615312,1705265475892,-500.0,0.00030958,2]
[311615313,1705265475902,-500.0,0.00030958,2]
[311615314,1705265475911,-500.0,0.00030958,2]
[311615315,1705265475920,-2718.67,0.00030958,2]
[311615316,1705265475930,-500.0,0.00030958,2]
[311615317,1705265475939,-500.0,0.00030958,2]
[311615318,1705265475948,-500.0,0.00030958,2]
[311615319,1705265475957,-679.75,0.00030958,2]
[311615320,1705265475967,-162.46604884,0.00030958,2]
[311615321,1705265475976,-1251.06,0.00030958,2]
[311615322,1705265475986,-650.18,0.00030958,2]
[311615323,1705265475996,-500.0,0.00030958,2]
[311615324,1705265476005,-983.25,0.00030958,2]
[311615325,1705265476015,-500.0,0.00030958,2]
[311615326,1705265476024,-500.0,0.00030958,2]
[311615327,1705265476033,-500.0,0.00030958,2]
[311615328,1705265476042,-2249.92,0.00030958,2]
[311615329,1705265476051,-500.0,0.00030958,2]
[311615330,1705265476147,-595.82,0.00030958,2]
[311615331,1705265476157,-500.0,0.00030958,2]
[311615332,1705265476166,-500.0,0.00030958,2]
[311615333,1705265476175,-500.0,0.00030958,2]
[311615334,1705265476185,-500.0,0.00030958,2]
[311615335,1705265476193,-500.0,0.00030958,2]
[311615336,1705265476202,-1879.49,0.00030958,2]